bitfinex-derivatives/quotes_BNBF0:USTF0_20250406
["timestamp","ask_amount","ask_price","bid_price","bid_amount"]
[1743972436442,1.38341513,555.1,554.92,0.193]
[1743972436643,1.38341513,555.09,554.92,0.193]
[1743972437039,1.38341513,555.08,554.92,0.193]
[1743972437244,1.6000149,555.07,554.92,0.193]
[1743972437445,2.98343003,555.06,554.92,0.193]
[1743972437644,2.24394884,555.05,554.92,0.193]
[1743972437839,1.59446937,555.04,554.92,0.193]
[1743972438039,1.59446937,555.03,554.92,0.193]
[1743972438263,1.59446937,555.02,554.92,0.193]
[1743972438543,3.3093539,555.01,554.92,0.193]
[1743972438743,2.57541824,555.0,554.92,0.193]
[1743972438943,2.57541824,554.99,554.92,0.193]
[1743972439144,2.57541824,554.98,554.92,0.193]
[1743972439347,3.95883337,554.97,554.92,0.193]
[1743972439542,3.62736397,554.96,554.82,1.093]
[1743972439740,2.24394884,554.95,554.82,1.093]
[1743972439940,1.59446937,554.94,554.82,1.093]
[1743972440140,1.59446937,554.93,554.82,1.093]
[1743972440343,1.59446937,554.92,554.82,1.093]
[1743972440545,1.59446937,554.91,554.82,1.093]
[1743972440745,1.59446937,554.9,554.82,1.093]
[1743972440945,1.59446937,554.89,554.82,1.093]
[1743972441246,1.38341513,554.88,554.82,1.093]
[1743972441441,1.59446937,554.87,553.18,1.31159584]
[1743972441647,1.59446937,554.86,553.2,0.36153289]
[1743972441846,1.38341513,554.85,553.2,0.36153289]
[1743972442047,2.0328946,554.85,553.2,0.36153289]
[1743972442247,1.59446937,554.84,553.2,0.36153289]
[1743972442447,1.38341513,554.83,553.2,0.36153289]
[1743972442748,2.9778845,554.83,553.2,0.36153289]
[1743972442948,2.9778845,554.82,553.2,0.36153289]
[1743972443148,1.59446937,554.81,553.2,0.36153289]
[1743972443343,1.38341513,554.82,553.2,0.36153289]
[1743972443750,2.9778845,554.81,553.2,0.36153289]
[1743972443946,2.24198846,554.8,553.2,0.36153289]
[1743972444148,1.38341513,554.79,553.2,0.36153289]
[1743972444549,1.38341513,554.79,553.21,1.097]
[1743972444850,1.38341513,554.79,553.23,0.36151329]
[1743972445549,1.38341513,554.78,553.23,0.36151329]
[1743972445751,1.38341513,554.77,553.23,0.36151329]
[1743972446353,1.38341513,554.76,553.23,0.36151329]
[1743972446752,1.38341513,554.75,553.23,0.36151329]
[1743972447151,1.38341513,554.74,553.23,0.36151329]
[1743972449752,2.97148091,554.95,553.23,0.36151329]
[1743972449953,1.38341513,554.95,553.23,0.36151329]
[1743972450250,1.38341513,554.94,553.23,0.36151329]
[1743972450650,1.69732173,554.94,553.23,0.36151329]
[1743972451150,1.38341513,554.93,553.23,0.36151329]
[1743972451550,1.90404274,554.94,553.23,0.36151329]
[1743972451755,1.257,554.92,553.23,0.36151329]
[1743972454757,2.62488047,554.92,553.23,0.36151329]
[1743972455259,1.257,554.92,553.23,0.36151329]
[1743972455659,1.257,554.92,553.35,1.31159584]
[1743972455859,0.911,554.91,553.37,0.36142183]
[1743972456459,2.27888047,554.91,553.37,0.36142183]
[1743972457160,0.31389953,554.9,553.37,0.36142183]
[1743972457562,1.90538665,554.9,553.37,0.36142183]
[1743972457764,1.36788047,554.89,553.37,0.36142183]
[1743972458165,1.36788047,554.89,553.42,1.31159584]
[1743972458466,1.36788047,554.89,553.44,0.36137612]
[1743972461871,0.31389953,554.9,553.44,0.36137612]
[1743972462471,2.27888047,554.91,553.44,0.36137612]
[1743972462667,1.59252747,554.9,553.44,0.36137612]
[1743972462872,0.31393209,554.89,553.44,0.36137612]
[1743972463072,1.68181256,554.89,553.44,0.36137612]
[1743972463975,1.199,554.88,553.44,0.36137612]
[1743972464373,2.79152747,554.88,553.44,0.36137612]
[1743972464572,1.36788047,554.87,553.44,0.36137612]
[1743972464773,2.96040794,554.87,553.44,0.36137612]
[1743972465575,0.64879097,554.86,553.44,0.36137612]
[1743972465771,1.36788047,554.85,553.44,0.36137612]
[1743972465974,3.60919891,554.85,553.44,0.36137612]
[1743972466270,3.60919891,554.84,553.44,0.36137612]
[1743972466476,2.24131844,554.83,553.44,0.36137612]
[1743972466875,2.5552916,554.83,553.44,0.36137612]
[1743972467075,2.01667144,554.82,553.44,0.36137612]
[1743972467276,1.59252747,554.81,553.44,0.36137612]
[1743972467677,0.64856938,554.81,553.45,0.883]
[1743972467876,1.36788047,554.8,553.45,0.883]
[1743972468078,3.60897732,554.8,553.45,0.883]
[1743972468274,2.24109685,554.79,553.45,0.883]
[1743972468478,0.33161923,554.78,553.45,0.883]
[1743972468779,2.57271608,554.78,553.45,0.883]
[1743972468974,3.94059655,554.77,553.45,0.883]
[1743972469175,2.57271608,554.76,553.45,0.883]
[1743972469378,2.57271608,554.75,553.45,0.883]
[1743972469579,2.57271608,554.74,553.45,0.883]
[1743972469772,3.93986597,554.73,553.45,0.883]
[1743972469971,2.5719855,554.72,553.45,0.883]
[1743972470173,3.93986597,554.71,553.45,0.883]
[1743972470377,2.5719855,554.7,553.45,0.883]
[1743972470571,2.5719855,554.69,553.45,0.883]
[1743972470779,2.93255375,554.68,553.45,0.883]
[1743972471079,3.93986597,554.67,553.45,0.883]
[1743972471379,3.93986597,554.66,553.45,0.883]
[1743972471576,2.93257325,554.65,553.45,0.883]
[1743972471776,2.93257975,554.64,553.45,0.883]
[1743972471979,3.60824674,554.63,553.45,0.883]
[1743972472181,2.932805,554.62,553.45,0.883]
[1743972472381,3.94007821,554.61,553.45,0.883]
[1743972472580,2.57219774,554.6,553.45,0.883]
[1743972472782,3.60824674,554.59,553.45,0.883]
[1743972472978,2.57225266,554.58,553.45,0.883]
[1743972473173,2.57225266,554.57,553.45,0.883]
[1743972473380,2.57225266,554.56,553.45,0.883]
[1743972473577,3.94013313,554.55,553.45,0.883]
[1743972473781,2.57225266,554.54,553.45,0.883]
[1743972473977,0.36067229,554.52,553.45,0.883]
[1743972474180,3.94013313,554.51,553.45,0.883]
[1743972474483,0.3606918,554.49,553.45,0.883]
[1743972474676,2.57225266,554.48,553.45,0.883]
[1743972474880,0.36071132,554.46,553.45,0.883]
[1743972475077,1.91549606,554.45,553.45,0.883]
[1743972475280,0.36073084,554.43,553.45,0.883]
[1743972475479,1.9156454,554.42,553.45,0.883]
[1743972475683,3.93136467,554.41,553.45,0.883]
[1743972475879,2.5634842,554.4,553.45,0.883]
[1743972476082,2.5634842,554.39,553.45,0.883]
[1743972476283,2.5634842,554.38,553.45,0.883]
[1743972476485,2.5634842,554.37,553.45,0.883]
[1743972476683,3.93136467,554.36,553.45,0.883]
[1743972476884,2.23144847,554.35,553.45,0.883]
[1743972477079,3.64426644,554.34,553.45,0.883]
[1743972477285,2.92423128,554.33,553.45,0.883]
[1743972477485,2.58943521,554.32,553.45,0.883]
[1743972477685,3.59651326,554.31,553.45,0.883]
[1743972477882,2.22863279,554.3,553.45,0.883]
[1743972478184,2.54282422,554.3,553.45,0.883]
[1743972478381,2.01290359,554.29,553.45,0.883]
[1743972478585,2.95149014,554.28,553.45,0.883]
[1743972478786,1.00585809,554.27,553.45,0.883]
[1743972478990,1.94445115,554.26,553.45,0.883]
[1743972479182,3.95736125,554.25,553.45,0.883]
[1743972479388,2.58948729,554.24,553.45,0.883]
[1743972479582,0.64502312,554.23,553.45,0.883]
[1743972479786,1.94446417,554.24,553.45,0.883]
[1743972479981,2.95149014,554.23,553.45,0.883]
[1743972480185,1.58360967,554.22,553.45,0.883]
[1743972480483,1.36788047,554.22,553.45,0.883]
[1743972480883,2.95149014,554.27,553.45,0.883]
[1743972481187,2.95149014,554.26,553.45,0.883]
[1743972481382,1.58360967,554.25,553.46,0.36136306]
[1743972481686,1.36788047,554.24,553.46,0.36136306]
[1743972481887,1.36788047,554.29,553.46,0.36136306]
[1743972482289,2.40488047,554.28,553.46,0.36136306]
[1743972482489,1.58360967,554.27,553.46,0.36136306]
[1743972482989,2.95149014,554.27,553.46,0.36136306]
[1743972483291,1.58470445,554.26,553.46,0.36136306]
[1743972483491,2.95258492,554.27,553.46,0.36136306]
[1743972483887,3.59819234,554.26,553.46,0.36136306]
[1743972484086,2.23031187,554.25,553.46,0.36136306]
[1743972484494,2.95258492,554.24,553.46,0.36136306]
[1743972484892,1.58470445,554.23,553.46,0.36136306]
[1743972485191,1.36788047,554.22,553.46,0.36136306]
[1743972485891,1.36788047,554.21,553.46,0.36136306]
[1743972486392,2.95258492,554.27,553.46,0.36136306]
[1743972486892,0.31412053,554.26,553.46,0.36136306]
[1743972487387,1.36788047,554.27,553.46,0.36136306]
[1743972487792,1.037,554.28,553.46,0.36136306]
[1743972488894,1.163,554.27,553.46,0.36136306]
[1743972489392,1.36788047,554.26,553.46,0.36136306]
[1743972489693,1.36788047,554.25,553.46,0.36136306]
[1743972490189,3.5992089,554.25,553.46,0.36136306]
[1743972490393,3.5992089,554.24,553.46,0.36136306]
[1743972490694,3.5992089,554.23,553.46,0.36136306]
[1743972490889,2.23132843,554.22,553.46,0.36136306]
[1743972491090,1.36788047,554.21,553.46,0.36136306]
[1743972491295,2.95341867,554.21,553.46,0.36136306]
[1743972491494,1.5855382,554.2,553.46,0.36136306]
[1743972491896,1.36788047,554.19,553.46,0.36136306]
[1743972492089,2.95341867,554.19,553.46,0.36136306]
[1743972492290,2.95341867,554.18,553.46,0.36136306]
[1743972492594,2.23130415,554.17,553.46,0.36136306]
[1743972492894,2.95341867,554.16,553.46,0.36136306]
[1743972493095,2.56329632,554.15,553.47,1.027]
[1743972493298,2.56329632,554.14,553.47,1.027]
[1743972493496,3.93117679,554.13,553.47,1.027]
[1743972493690,2.56329632,554.12,553.47,1.027]
[1743972493891,2.23130415,554.11,553.47,1.027]
[1743972494094,2.23130415,554.1,553.47,1.027]
[1743972494295,3.59918462,554.09,553.47,1.027]
[1743972494489,2.23130415,554.08,553.47,1.027]
[1743972494695,2.95341867,554.07,553.47,1.027]
[1743972494898,2.23130415,554.06,553.47,1.027]
[1743972495196,1.5855382,554.05,553.47,1.027]
[1743972495494,3.2854624,554.04,553.47,1.027]
[1743972495695,2.56334788,554.03,553.47,1.027]
[1743972495998,2.56334788,554.02,553.47,1.027]
[1743972496191,2.56329742,554.01,553.47,1.027]
[1743972496396,2.56329742,554.0,553.47,1.027]
[1743972496595,2.56329742,553.99,553.47,1.027]
[1743972496793,3.93117789,553.98,553.47,1.027]
[1743972496991,3.27425369,553.97,553.47,1.027]
[1743972497196,0.64539794,553.96,553.47,1.027]
[1743972497392,1.36788047,553.95,553.47,1.027]
[1743972497796,3.59881661,553.95,553.47,1.027]
[1743972497992,3.59881661,553.94,553.47,1.027]
[1743972498196,2.23093614,553.93,553.47,1.027]
[1743972498600,2.95341867,553.92,553.47,1.027]
[1743972498805,2.23093614,553.91,553.47,1.027]
[1743972499101,3.28555469,553.9,553.47,1.027]
[1743972499298,2.56307216,553.89,553.47,1.027]
[1743972499494,1.36788047,553.9,553.47,1.027]
[1743972499495,3.93102269,553.88,553.47,1.027]
[1743972499700,2.56314222,553.87,553.47,1.027]
[1743972499900,2.56314222,553.86,553.47,1.027]
[1743972500100,3.93102269,553.85,553.47,1.027]
[1743972500300,2.56314222,553.84,553.47,1.027]
[1743972500497,3.93102269,553.83,553.47,1.027]
[1743972500701,2.56314222,553.82,553.47,1.027]
[1743972500996,2.34548449,553.81,553.47,1.027]
[1743972501201,1.91774428,553.8,553.47,1.027]
[1743972501403,0.33220608,553.79,553.47,1.027]
[1743972501699,1.36788047,553.81,553.47,1.027]
[1743972502201,2.94662956,553.83,553.47,1.027]
[1743972502500,1.166,553.86,553.47,1.027]
[1743972502501,2.94662956,553.82,553.47,1.027]
[1743972502702,1.57874909,553.81,553.47,1.027]
[1743972502897,0.6432507,553.81,553.47,1.027]
[1743972503095,3.27881269,553.8,553.47,1.027]
[1743972503306,2.55415237,553.79,553.47,1.027]
[1743972503505,0.97540328,553.78,553.47,1.027]
[1743972503706,0.33218313,553.77,553.47,1.027]
[1743972503902,1.36788047,553.76,553.47,1.027]
[1743972504706,0.33214338,553.75,553.47,1.027]
[1743972505009,1.36788047,553.81,553.47,1.027]
[1743972505504,2.94559094,553.85,553.47,1.027]
[1743972505805,0.31432481,553.8,553.47,1.027]
[1743972507712,2.335,553.86,553.47,1.027]
[1743972508812,0.314295,553.85,553.47,1.027]
[1743972509813,1.66997747,553.85,553.47,1.027]
[1743972510018,3.24672883,553.85,553.47,1.027]
[1743972510314,1.35568247,553.84,553.47,1.027]
[1743972510923,0.31434895,553.83,553.47,1.027]
[1743972512118,0.31434895,553.83,552.34,0.31434895]
[1743972512322,0.31434895,553.83,552.36,0.36208269]
[1743972514225,1.5790703,553.82,552.36,0.36208269]
[1743972514525,1.5790703,553.81,552.36,0.36208269]
[1743972514726,2.93574514,553.8,552.37,0.975]
[1743972514920,2.22228773,553.79,552.39,0.36206303]
[1743972515124,1.57870274,553.78,552.39,0.36206303]
[1743972515326,1.57870274,553.77,552.39,0.36206303]
[1743972515529,1.57870274,553.76,552.39,0.36206303]
[1743972515827,1.3570424,553.75,552.39,0.36206303]
[1743972516529,4.02874514,553.74,552.39,0.36206303]
[1743972516725,2.22228773,553.73,552.39,0.36206303]
[1743972516928,1.57870274,553.72,552.39,0.36206303]
[1743972517125,1.57870274,553.71,552.39,0.36206303]
[1743972517431,1.91098911,553.7,552.39,0.36206303]
[1743972517636,2.58350068,553.69,552.39,0.36206303]
[1743972517838,2.55463302,553.68,552.39,0.36206303]
[1743972518028,3.91167542,553.67,552.39,0.36206303]
[1743972518238,2.55463302,553.66,552.39,0.36206303]
[1743972518435,0.36125862,553.62,552.39,0.36206303]
[1743972518628,3.26809043,553.61,552.39,0.36206303]
[1743972518831,2.55463302,553.6,552.39,0.36206303]
[1743972519029,4.27295362,553.59,552.39,0.36206303]
[1743972519331,2.91591774,553.58,552.39,0.36206303]
[1743972519530,0.36129778,553.56,552.39,0.36206303]
[1743972519727,3.26809043,553.55,552.39,0.36206303]
[1743972519932,2.91594385,553.54,552.39,0.36206303]
[1743972520133,2.55463302,553.53,552.39,0.36206303]
[1743972520335,2.55463302,553.52,552.39,0.36206303]
[1743972520628,0.36133694,553.5,552.39,0.36206303]
[1743972520833,1.91104803,553.49,552.39,0.36206303]
[1743972521034,2.91598302,553.48,552.39,0.36206303]
[1743972521236,2.91598955,553.47,552.39,0.36206303]
[1743972521437,2.91599608,553.46,552.39,0.36206303]
[1743972521735,2.91600261,553.45,552.39,0.36206303]
[1743972521936,2.55463302,553.44,552.39,0.36206303]
[1743972522136,2.55463302,553.43,552.39,0.36206303]
[1743972522336,0.36139571,553.41,552.39,0.36206303]
[1743972522535,3.26809043,553.4,552.39,0.36206303]
[1743972522730,2.55463302,553.39,552.39,0.36206303]
[1743972522934,2.55463302,553.38,552.39,0.36206303]
[1743972523137,3.91167542,553.37,552.39,0.36206303]
[1743972523333,2.55463302,553.36,552.39,0.36206303]
[1743972523534,3.91167542,553.35,552.39,0.36206303]
[1743972523736,2.22228773,553.34,552.39,0.36206303]
[1743972523937,1.57870274,553.33,552.39,0.36206303]
[1743972524237,1.91124279,553.32,552.39,0.36206303]
[1743972524437,3.57933013,553.31,552.39,0.36206303]
[1743972524635,1.57870274,553.3,552.39,0.36206303]
[1743972524937,1.3570424,553.31,552.39,0.36206303]
[1743972525137,2.93178613,553.32,552.39,0.36206303]
[1743972529842,1.3570424,553.31,552.39,0.36206303]
[1743972530343,1.3570424,553.3,552.39,0.36206303]
[1743972531041,2.93178613,553.32,552.39,0.36206303]
[1743972531743,1.3570424,553.32,552.39,0.36206303]
[1743972532444,1.20477403,553.33,552.39,0.36206303]
[1743972533145,0.89,553.33,552.39,0.36206303]
[1743972535038,2.166,553.33,552.39,0.36206303]
[1743972545848,3.484,553.33,552.39,0.36206303]
[1743972546444,4.465,553.33,552.39,0.36206303]
[1743972567663,4.465,553.33,552.48,1.31159584]
[1743972567863,4.465,553.33,552.5,0.36199095]
[1743972568062,3.189,553.33,552.5,0.36199095]
[1743972578774,4.489,553.33,552.5,0.36199095]
[1743972584679,4.489,553.33,552.51,1.31159584]
[1743972584876,4.489,553.33,552.53,0.36197129]
[1743972586783,4.489,553.33,552.53,1.44697129]
[1743972587181,4.489,553.33,552.54,1.31159584]
[1743972587475,4.489,553.33,552.55,0.36195819]
[1743972589885,4.489,553.33,552.6,1.31159584]
[1743972590185,4.489,553.33,552.61,0.36191889]
[1743972591985,4.489,553.33,552.9,1.31159584]
[1743972592386,4.489,553.33,552.91,0.36172252]
[1743972601997,4.489,553.33,552.72,1.31159584]
[1743972602898,4.489,553.33,552.73,0.36184031]
[1743972606794,4.489,553.33,552.74,0.998]
[1743972607098,4.489,553.33,552.75,0.36182722]
[1743972611603,3.599,553.33,552.75,0.36182722]
[1743972611799,3.599,553.33,552.82,1.31159584]
[1743972612004,3.599,553.33,552.83,0.36177486]
[1743972613907,3.599,553.33,552.84,1.31159584]
[1743972614104,3.599,553.33,552.85,0.36176177]
[1743972614299,1.3,553.33,552.85,0.36176177]
[1743972614501,1.108,553.52,552.85,0.36176177]
[1743972615707,1.108,553.52,552.88,1.31159584]
[1743972616106,1.076,554.0,552.88,1.31159584]
[1743972616307,1.076,554.0,552.9,0.36172906]
[1743972618907,1.076,554.0,552.9,1.6733249]
[1743972621516,1.076,554.0,552.94,1.31159584]
[1743972622011,1.076,554.0,552.96,0.36168981]
[1743972631226,1.079,553.99,552.96,0.36168981]
[1743972638229,1.078,553.98,552.96,0.36168981]
[1743972641527,1.01,553.97,552.96,0.36168981]
[1743972642930,0.949,553.96,552.96,0.36168981]
[1743972646131,0.949,553.96,553.03,1.31159584]
[1743972646331,0.949,553.96,553.05,0.36163095]
[1743972648328,0.949,553.96,553.09,1.31159584]
[1743972649633,1.176,553.95,553.09,1.31159584]
[1743972650329,1.176,553.95,553.15,1.31159584]
[1743972651135,1.176,553.95,553.16,0.36155904]
[1743972653439,1.176,553.95,553.32,1.31159584]
[1743972653835,1.176,553.95,553.33,0.36144796]
[1743972655642,1.176,553.95,553.57,1.31159584]
[1743972655936,1.079,553.99,553.57,1.31159584]
[1743972656138,1.079,553.99,553.58,0.36128472]
[1743972656337,1.129,554.18,553.58,0.36128472]
[1743972673552,1.129,554.18,553.45,1.079]
[1743972675152,0.65306209,554.22,553.45,1.079]
[1743972675356,0.33192639,554.21,553.45,1.079]
[1743972675558,3.63304612,554.22,553.45,1.079]
[1743972675755,2.25480678,554.21,553.45,1.079]
[1743972675952,1.71016485,554.2,553.45,1.079]
[1743972676157,0.33192551,554.19,553.45,1.079]
[1743972676358,0.36089357,554.18,553.45,1.079]
[1743972676659,1.71016485,554.17,553.45,1.079]
[1743972676859,0.33200633,554.16,553.45,1.079]
[1743972677258,0.98506842,554.16,553.45,1.079]
[1743972677453,0.33200633,554.16,553.45,1.079]
[1743972677659,1.91598151,554.17,553.45,1.079]
[1743972677961,1.37823934,554.16,553.45,1.079]
[1743972678257,1.237,554.15,553.45,1.079]
[1743972678660,3.87674469,554.15,553.45,1.079]
[1743972678857,2.97998403,554.14,553.45,1.079]
[1743972679061,1.37823934,554.14,553.45,1.079]
[1743972679862,0.3141815,554.13,553.45,1.079]
[1743972681561,2.56117377,554.13,553.45,1.079]
[1743972681762,0.65029487,554.12,553.45,1.079]
[1743972682163,2.0233897,554.12,553.45,1.079]
[1743972682364,1.5966974,554.11,553.45,1.079]
[1743972682563,3.6200871,554.11,553.45,1.079]
[1743972682766,2.57848942,554.1,553.45,1.079]
[1743972682961,2.71583904,554.09,553.45,1.079]
[1743972683165,4.31254295,554.08,553.45,1.079]
[1743972683362,2.57848942,554.07,553.45,1.079]
[1743972683559,2.57848942,554.06,553.45,1.079]
[1743972683760,2.5785413,554.05,553.45,1.079]
[1743972683966,2.93952606,554.04,553.45,1.079]
[1743972684266,2.93953258,554.03,553.45,1.079]
[1743972684460,2.93953909,554.02,553.45,1.079]
[1743972684660,2.93954561,554.01,553.45,1.079]
[1743972684862,2.93955213,554.0,553.45,1.079]
[1743972685065,2.93955864,553.99,553.45,1.079]
[1743972685266,2.93956516,553.98,553.45,1.079]
[1743972685468,2.93957168,553.97,553.45,1.079]
[1743972685661,2.5785413,553.96,553.45,1.079]
[1743972685861,3.95163613,553.95,553.45,1.079]
[1743972686162,2.57618474,553.94,553.45,1.079]
[1743972686367,2.57618474,553.93,553.45,1.079]
[1743972686569,3.94927957,553.92,553.45,1.079]
[1743972686764,2.57618474,553.91,553.45,1.079]
[1743972686969,2.24407006,553.9,553.45,1.079]
[1743972687170,3.61716489,553.89,553.45,1.079]
[1743972687368,2.57623213,553.88,553.45,1.079]
[1743972687570,2.57623213,553.87,553.45,1.079]
[1743972687769,2.24407006,553.86,553.45,1.079]
[1743972687970,3.3019543,553.85,553.45,1.079]
[1743972688168,2.24407006,553.84,553.45,1.079]
[1743972688363,1.5966974,553.84,553.45,1.079]
[1743972688568,1.37309483,553.83,553.45,1.079]
[1743972688969,0.31430068,553.83,553.45,1.079]
[1743972690371,1.37309483,553.9,553.45,1.079]
[1743972690971,2.95865332,553.98,553.45,1.079]
[1743972691665,0.96005945,553.97,553.45,1.079]
[1743972691870,1.37309483,553.96,553.45,1.079]
[1743972692565,1.37309483,553.95,553.45,1.079]
[1743972693970,0.3143021,553.94,553.45,1.079]
[1743972694971,1.89886968,553.94,552.52,0.3143021]
[1743972695172,1.58477281,553.93,552.54,0.36196474]
[1743972695571,0.3143021,553.94,552.54,0.36196474]
[1743972696071,1.37309483,553.95,552.54,0.36196474]
[1743972696470,1.37309483,553.94,552.54,0.36196474]
[1743972697170,1.37309483,553.98,552.54,0.36196474]
[1743972697877,1.215,553.99,552.54,0.36196474]
[1743972698477,1.215,553.99,552.54,1.44196474]
[1743972699277,0.924,553.98,552.54,1.44196474]
[1743972699572,2.51068417,553.98,552.54,1.44196474]
[1743972699778,0.924,553.98,552.54,1.44196474]
[1743972700371,2.29709483,553.98,552.54,1.44196474]
[1743972701272,1.58664359,553.97,552.54,1.44196474]
[1743972701474,2.95973842,553.97,552.54,1.44196474]
[1743972702874,1.383,553.96,552.54,1.44196474]
[1743972703078,4.34273842,553.96,552.54,1.44196474]
[1743972703278,1.58664359,553.95,552.54,1.44196474]
[1743972703678,2.44764359,553.95,552.54,1.44196474]
[1743972703874,1.37309483,553.94,552.54,1.44196474]
[1743972704074,3.27411576,553.94,552.54,1.44196474]
[1743972704279,1.68747217,553.94,552.54,1.44196474]
[1743972704475,1.37309483,553.93,552.54,1.44196474]
[1743972705280,0.861,553.95,552.54,1.44196474]
[1743972709385,0.861,553.95,552.71,1.31159584]
[1743972709578,0.861,553.95,552.73,0.36184031]
[1743972709781,2.22618422,553.95,552.73,0.36184031]
[1743972709981,0.3143532,553.94,552.73,0.36184031]
[1743972710785,1.4823532,553.94,552.73,0.36184031]
[1743972711685,1.168,553.94,552.73,0.36184031]
[1743972716591,1.168,553.94,552.76,1.31159584]
[1743972716792,1.168,553.94,552.78,0.36180759]
[1743972717993,1.168,553.94,552.78,1.44080759]
[1743972719286,1.168,553.94,552.97,1.31159584]
[1743972719490,1.168,553.94,552.99,0.36167019]
[1743972719887,3.429,553.94,552.99,0.36167019]
[1743972726598,1.37882126,553.93,552.99,0.36167019]
[1743972727999,0.31435178,553.92,552.99,0.36167019]
[1743972729700,3.429,553.94,552.99,0.36167019]
[1743972732101,2.99104188,553.93,552.99,0.36167019]
[1743972733302,0.3143887,553.92,552.99,0.36167019]
[1743972733601,1.69709559,553.92,552.99,0.36167019]
[1743972734799,0.3143887,553.92,552.99,0.36167019]
[1743972735304,0.878,553.91,552.99,0.36167019]
[1743972735701,0.878,553.91,553.0,1.31159584]
[1743972736904,0.878,553.91,553.01,0.36165711]
[1743972737705,2.26093012,553.91,553.01,0.36165711]
[1743972738302,1.60928244,553.9,553.01,0.36165711]
[1743972738705,2.99221256,553.9,553.01,0.36165711]
[1743972739004,0.31439864,553.89,553.01,0.36165711]
[1743972739205,2.09699015,553.89,553.01,0.36165711]
[1743972739505,2.99221256,553.88,553.01,0.36165711]
[1743972740206,1.38293012,553.88,553.01,0.36165711]
[1743972740407,1.44139864,553.89,553.01,0.36165711]
[1743972741708,1.127,553.89,553.01,0.36165711]
[1743972742108,0.31438018,553.88,553.01,0.36165711]
[1743972743018,1.71507688,553.87,553.01,0.36165711]
[1743972743208,1.71507688,553.86,553.01,0.36165711]
[1743972743409,1.94089991,553.85,553.01,0.36165711]
[1743972743607,2.59628088,553.84,553.01,0.36165711]
[1743972743910,2.59628088,553.83,553.01,0.36165711]
[1743972744107,2.26413412,553.82,553.01,0.36165711]
[1743972744307,1.60875315,553.81,553.01,0.36165711]
[1743972744510,1.96989435,553.8,552.71,1.31159584]
[1743972744710,2.95757052,553.79,552.71,1.31159584]
[1743972744909,4.34050716,553.78,552.71,1.31159584]
[1743972745112,2.95758357,553.77,552.71,1.31159584]
[1743972745309,2.95399454,553.76,552.71,1.31159584]
[1743972745512,2.95400106,553.75,552.71,1.31159584]
[1743972745713,2.6217189,553.74,552.71,1.31159584]
[1743972745918,2.95401411,553.73,552.71,1.31159584]
[1743972746114,2.95402063,553.72,552.53,1.31159584]
[1743972746318,2.95402715,553.71,552.53,1.31159584]
[1743972746614,2.59282725,553.7,552.53,1.31159584]
[1743972746814,2.59282725,553.69,552.53,1.31159584]
[1743972747014,2.59282725,553.68,552.53,1.31159584]
[1743972747216,2.26053857,553.67,552.53,1.31159584]
[1743972747415,2.26053857,553.66,552.53,1.31159584]
[1743972747616,1.6051576,553.65,552.53,1.31159584]
[1743972747922,2.98808772,553.64,552.53,1.31159584]
[1743972748123,2.26053857,553.63,552.53,2.38959584]
[1743972748322,1.6051576,553.62,552.53,2.38959584]
[1743972748523,2.5929688,553.61,552.53,2.38959584]
[1743972748720,2.5929688,553.6,552.53,2.38959584]
[1743972748922,3.97589892,553.59,552.53,1.078]
[1743972749119,2.5929688,553.58,552.53,1.078]
[1743972749321,3.97589892,553.57,552.53,1.078]
[1743972749520,2.5929688,553.56,552.53,1.078]
[1743972749724,2.5929688,553.55,552.53,1.078]
[1743972749925,2.5929688,553.54,552.53,1.078]
[1743972750125,2.5929688,553.53,552.53,1.078]
[1743972750326,3.97589892,553.52,552.53,1.078]
[1743972750527,2.5929688,553.51,552.53,1.078]
[1743972750822,2.59310094,553.5,552.53,1.078]
[1743972751024,3.97603106,553.49,552.53,1.078]
[1743972751225,2.59310094,553.48,552.53,1.078]
[1743972751526,2.59310094,553.47,552.53,1.078]
[1743972751727,2.59310094,553.46,552.53,1.078]
[1743972751927,3.97603106,553.45,552.53,1.078]
[1743972752120,0.36138265,553.43,552.53,1.078]
[1743972752323,2.26053857,553.42,552.53,1.078]